fUST/lending_fUST_20241215
["ID","MTS","AMOUNT","RATE_DAILY","PERIOD"]
[345393094,1734229840318,-500.0,0.00027397,7]
[345393095,1734229840329,-500.0,0.00027397,7]
[345393096,1734229840339,-822.37,0.00027397,7]
[345393097,1734229840348,-500.0,0.00027397,7]
[345393098,1734229840358,-665.98,0.00027397,7]
[345393099,1734229840367,-500.0,0.00027397,7]
[345393101,1734229840376,-500.0,0.00027397,7]
[345393103,1734229840386,-500.0,0.00027397,7]
[345393104,1734229840396,-500.0,0.00027397,7]
[345393105,1734229840405,-500.0,0.00027397,7]
[345393106,1734229840415,-827.36,0.00027397,7]
[345393107,1734229840424,-500.0,0.00027397,7]
[345393108,1734229840433,-300.89,0.00027397,7]
[345393109,1734229840443,-500.0,0.00027397,7]
[345393110,1734229840452,-507.32299718,0.00027397,7]
[345393111,1734229840462,-1392.58,0.00027397,7]
[345393112,1734229840471,-500.0,0.00027397,7]
[345393113,1734229840481,-500.0,0.00027397,7]
[345393114,1734229840490,-500.0,0.00027397,7]
[345393115,1734229840499,-501.78374635,0.00027397,7]
[345393116,1734229840508,-500.0,0.00027397,7]
[345393117,1734229840518,-500.0,0.00027397,7]
[345393118,1734229840527,-293.83,0.00027397,7]
[345393119,1734229840537,-500.0,0.00027397,7]
[345393120,1734229840546,-500.0,0.00027397,7]
[345393121,1734229840556,-500.0,0.00027397,7]
[345393122,1734229840565,-502.66613123,0.00027397,7]
[345393123,1734229840576,-500.0,0.00027397,7]
[345393124,1734229840586,-500.0,0.00027397,7]
[345393125,1734229840596,-276.37416642,0.00027397,2]
[345393126,1734229840605,-500.0,0.00027671,7]
[345393127,1734229840615,-384.42211696,0.00027671,7]
[345393129,1734229840624,-515.96,0.00027671,7]
[345393131,1734229840634,-500.0,0.00027671,7]
[345393133,1734229840644,-500.0,0.00027671,7]
[345393135,1734229840654,-375.58857899,0.00027671,7]
[345393137,1734229840663,-500.0,0.00027671,7]
[345393139,1734229840674,-200.88792151,0.00027671,7]
[345393141,1734229840683,-500.0,0.00027671,7]
[345393143,1734229840693,-500.0,0.00027671,7]
[345393144,1734229840703,-500.0,0.00027671,7]
[345393146,1734229840713,-500.0,0.00027671,7]
[345393148,1734229840722,-500.0,0.00027671,7]
[345393150,1734229840732,-500.0,0.00027671,7]
[345393152,1734229840741,-500.0,0.00027671,7]
[345393154,1734229840750,-500.0,0.00027671,7]
[345393156,1734229840759,-500.0,0.00027671,7]
[345393157,1734229840770,-500.0,0.00027671,7]
[345393159,1734229840780,-500.0,0.00027671,7]
[345393161,1734229840794,-500.0,0.00027671,7]
[345393163,1734229840803,-500.0,0.00027671,7]
[345393165,1734229840813,-500.0,0.00027671,7]
[345393167,1734229840823,-528.72344472,0.00027671,7]
[345393169,1734229840833,-500.0,0.00027671,7]
[345393171,1734229840842,-500.0,0.00027671,7]
[345393173,1734229840851,-500.0,0.00027671,7]
[345393175,1734229840861,-500.0,0.00027671,7]
[345393177,1734229840871,-500.0,0.00027671,7]
[345393179,1734229840881,-500.0,0.00027671,7]
[345393181,1734229840890,-500.0,0.00027671,7]
[345393183,1734229840899,-504.61757371,0.00027671,7]
[345393185,1734229840909,-504.13674674,0.00027671,7]
[345393187,1734229840918,-500.0,0.00027671,7]
[345393189,1734229840927,-1117.77,0.00027671,7]
[345393191,1734229840937,-500.0,0.00027671,7]
[345393193,1734229840946,-1211.0,0.00027671,7]
[345393195,1734229840955,-822.37,0.00027671,7]
[345393197,1734229840964,-665.98,0.00027671,7]
[345393199,1734229840977,-500.0,0.00027671,7]
[345393201,1734229840986,-500.0,0.00027671,7]
[345393203,1734229840997,-500.0,0.00027671,7]
[345393205,1734229841006,-827.36,0.00027671,7]
[345393207,1734229841016,-500.0,0.00027671,7]
[345393209,1734229841025,-1392.58,0.00027671,7]
[345393211,1734229841035,-500.0,0.00027671,7]
[345393213,1734229841044,-500.0,0.00027671,7]
[345393215,1734229841053,-500.0,0.00027671,7]
[345393217,1734229841062,-1110.07899681,0.00027777,2]
[345393219,1734229841072,-500.0,0.00027944,2]
[345393221,1734229841081,-500.0,0.00027944,2]
[345393223,1734229841090,-500.0,0.00027944,2]
[345393225,1734229841100,-500.0,0.00027944,2]
[345393227,1734229841109,-228.51184875,0.00027944,2]
[345393229,1734229841118,-500.0,0.00027944,2]
[345393231,1734229841128,-500.0,0.00027944,2]
[345393233,1734229841137,-420.94749026,0.00027944,2]
[345393235,1734229841146,-500.0,0.00027944,2]
[345393237,1734229841155,-500.0,0.00027944,2]
[345393239,1734229841165,-500.0,0.00027944,2]
[345393241,1734229841174,-471.36336326,0.00027944,2]
[345393243,1734229841184,-500.0,0.00027944,2]
[345393245,1734229841194,-601.42289699,0.00027944,2]
[345393247,1734229841204,-500.0,0.00027944,2]
[345393249,1734229841214,-500.0,0.00027944,2]
[345393251,1734229841224,-500.0,0.00027944,2]
[345393253,1734229841233,-500.0,0.00027944,2]
[345393255,1734229841243,-500.0,0.00027944,2]
[345393257,1734229841253,-597.71701721,0.00027944,2]
[345393259,1734229841262,-500.0,0.00027944,2]
[345393274,1734229841272,-500.0,0.00027944,2]
[345393276,1734229841417,-500.0,0.00027944,2]
[345393278,1734229841427,-500.0,0.00027944,2]
[345393280,1734229841436,-500.0,0.00027944,2]
[345393282,1734229841446,-500.0,0.00027944,2]
[345393284,1734229841456,-500.0,0.00027944,2]
[345393286,1734229841466,-500.0,0.00027944,2]
[345393288,1734229841476,-500.0,0.00027944,2]
[345393290,1734229841485,-500.0,0.00027944,2]
[345393292,1734229841494,-500.0,0.00027944,2]
[345393294,1734229841504,-500.0,0.00027944,2]
[345393296,1734229841513,-500.0,0.00027944,2]
[345393297,1734229841523,-500.0,0.00027944,2]
[345393299,1734229841532,-500.0,0.00027944,2]
[345393301,1734229841541,-500.0,0.00027944,2]
[345393303,1734229841551,-500.0,0.00027944,2]
[345393305,1734229841560,-500.0,0.00027944,2]
[345393307,1734229841570,-500.0,0.00027944,2]
[345393309,1734229841581,-500.0,0.00027944,2]
[345393310,1734229841591,-500.0,0.00027944,2]
[345393312,1734229841601,-500.0,0.00027944,2]
[345393313,1734229841610,-500.0,0.00027944,2]
[345393314,1734229841619,-500.0,0.00027944,2]
[345393315,1734229841628,-500.0,0.00027944,2]
[345393316,1734229841638,-500.0,0.00027944,2]
[345393317,1734229841649,-500.0,0.00027944,2]
[345393318,1734229841659,-500.0,0.00027944,2]
[345393319,1734229841668,-482.18722073,0.00027944,2]
[345393320,1734229841678,-515.96,0.00027945,7]
[345393321,1734229841687,-500.0,0.00027945,7]
[345393322,1734229841697,-500.0,0.00027945,7]
[345393323,1734229841707,-500.0,0.00027945,7]
[345393324,1734229841716,-500.0,0.00027945,7]
[345393325,1734229841726,-500.0,0.00027945,7]
[345393326,1734229841736,-500.0,0.00027945,7]
[345393327,1734229841746,-500.0,0.00027945,7]
[345393328,1734229841755,-500.0,0.00027945,7]
[345393329,1734229841765,-500.0,0.00027945,7]
[345393330,1734229841774,-184.6798646,0.00027945,7]
[345393331,1734229841785,-500.0,0.00027945,7]
[345393332,1734229841798,-500.0,0.00027945,7]
[345393333,1734229841808,-500.0,0.00027945,7]
[345393334,1734229841817,-500.0,0.00027945,7]
[345393335,1734229841828,-500.0,0.00027945,7]
[345393336,1734229841838,-500.0,0.00027945,7]
[345393337,1734229841847,-500.0,0.00027945,7]
[345393338,1734229841857,-500.0,0.00027945,7]
[345393339,1734229841867,-192.95738056,0.00027945,7]
[345393340,1734229841877,-1117.77,0.00027945,7]
[345393341,1734229841887,-500.0,0.00027945,7]
[345393342,1734229841896,-1211.0,0.00027945,7]
[345393343,1734229841906,-822.37,0.00027945,7]
[345393344,1734229841916,-665.98,0.00027945,7]
[345393345,1734229841926,-500.0,0.00027945,7]
[345393346,1734229841937,-500.0,0.00027945,7]
[345393347,1734229841946,-500.0,0.00027945,7]
[345393348,1734229841956,-827.36,0.00027945,7]
[345393349,1734229841965,-500.0,0.00027945,7]
[345393350,1734229841975,-1392.58,0.00027945,7]
[345393351,1734229841984,-500.0,0.00027945,7]
[345393352,1734229841994,-500.0,0.00027945,7]
[345393353,1734229842005,-500.0,0.00027945,7]
[345393354,1734229842015,-420.0,0.00028137,2]
[345393355,1734229842025,-5000.0,0.00028173,7]
[345393356,1734229842036,-1110.07899681,0.00028216,2]
[345393357,1734229842047,-500.0,0.00028218,7]
[345393358,1734229842057,-515.96,0.00028219,7]
[345393359,1734229842067,-500.0,0.00028219,7]
[345393360,1734229842077,-500.0,0.00028219,7]
[345393361,1734229842086,-500.0,0.00028219,7]
[345393362,1734229842097,-500.0,0.00028219,7]
[345393363,1734229842106,-500.0,0.00028219,7]
[345393364,1734229842116,-500.0,0.00028219,7]
[345393365,1734229842125,-500.0,0.00028219,7]
[345393366,1734229842135,-500.0,0.00028219,7]
[345393367,1734229842145,-500.0,0.00028219,7]
[345393368,1734229842154,-500.0,0.00028219,7]
[345393369,1734229842165,-247.67821161,0.00028219,7]
[345393370,1734229842177,-500.0,0.00028219,7]
[345393371,1734229842186,-156.61311114,0.00028219,7]
[345393372,1734229842197,-500.0,0.00028219,7]
[345393373,1734229842206,-500.0,0.00028219,7]
[345393374,1734229842215,-500.0,0.00028219,7]
[345393375,1734229842224,-500.0,0.00028219,7]
[345393376,1734229842234,-1117.77,0.00028219,7]
[345393377,1734229842244,-500.0,0.00028219,7]
[345393378,1734229842254,-1211.0,0.00028219,7]
[345393379,1734229842264,-822.37,0.00028219,7]
[345393380,1734229842274,-665.98,0.00028219,7]
[345393381,1734229842283,-500.0,0.00028219,7]
[345393382,1734229842293,-500.0,0.00028219,7]
[345393383,1734229842303,-500.0,0.00028219,7]
[345393384,1734229842313,-827.36,0.00028219,7]
[345393385,1734229842324,-500.0,0.00028219,7]
[345393386,1734229842334,-1392.58,0.00028219,7]
[345393387,1734229842343,-331.12350529,0.00028219,7]
[345393388,1734229842352,-500.0,0.00028219,7]
[345393389,1734229842362,-666.0,0.000284,2]
[345393390,1734229842372,-32297.30145477,0.000284,3]
[345393391,1734229842381,-156.55,0.000284,31]
[345393392,1734229842391,-156.55,0.000284,31]
[345393393,1734229842401,-156.55,0.000284,31]
[345393394,1734229842411,-151.0,0.000284,19]
[345393395,1734229842420,-2000.0,0.00028412,30]
[345393396,1734229842430,-151.0,0.00028436,7]
[345393397,1734229842440,-500.0,0.00028473,5]
[345393398,1734229842449,-500.0,0.00028473,5]
[345393399,1734229842459,-270.79876432,0.00028473,5]
[345393400,1734229842468,-500.0,0.00028473,5]
[345393401,1734229842478,-14900.59493309,0.0002848,5]
[345393402,1734229842487,-4377.76058461,0.0002848,2]
[345393403,1734229842497,-515.96,0.00028493,7]
[345393404,1734229842506,-500.0,0.00028493,7]
[345393405,1734229842515,-500.0,0.00028493,7]
[345393406,1734229842524,-500.0,0.00028493,7]
[345393407,1734229842534,-500.0,0.00028493,7]
[345393408,1734229842543,-500.0,0.00028493,7]
[345393409,1734229842553,-500.0,0.00028493,7]
[345393410,1734229842562,-500.0,0.00028493,7]
[345393411,1734229842572,-500.0,0.00028493,7]
[345393412,1734229842583,-500.0,0.00028493,7]
[345393413,1734229842593,-202.56929211,0.00028493,7]
[345393414,1734229842603,-500.0,0.00028493,7]
[345393415,1734229842612,-622.77401573,0.00028493,7]
[345393416,1734229842622,-500.0,0.00028493,7]
[345393417,1734229842632,-500.0,0.00028493,7]
[345393418,1734229842642,-500.0,0.00028493,7]
[345393419,1734229842651,-1117.77,0.00028493,7]
[345393420,1734229842661,-500.0,0.00028493,7]
[345393421,1734229842671,-1211.0,0.00028493,7]
[345393422,1734229842680,-822.37,0.00028493,7]
[345393423,1734229842690,-665.98,0.00028493,7]
[345393424,1734229842699,-500.0,0.00028493,7]
[345393425,1734229842709,-500.0,0.00028493,7]
[345393426,1734229842718,-500.0,0.00028493,7]
[345393427,1734229842727,-827.36,0.00028493,7]
[345393428,1734229842737,-500.0,0.00028493,7]
[345393429,1734229842746,-1392.58,0.00028493,7]
[345393430,1734229842756,-500.0,0.00028493,7]
[345393431,1734229842766,-23601.42922425,0.00028498,7]
[345393432,1734229842775,-205.21067892,0.00028499,2]
[345393433,1734229842787,-2014.74712422,0.000285,2]
[345393434,1734229842799,-112809.28725431,0.000285,2]
[345393435,1734229842809,-741884.37527127,0.000285,2]
[345393436,1734229842819,-307.656264,0.000285,13]
[345393437,1734229842832,-12616.63,0.000285,2]
[345393438,1734229842846,-582.19,0.000285,2]
[345393439,1734229842856,-346.63798172,0.000285,10]
[345393440,1734229842866,-84783.34456108,0.000285,2]
[345393441,1734229842952,-282.55790363,0.00028219,7]
[345393452,1734229844126,-217.44209637,0.00028219,7]
[345393453,1734229844137,-888.8017928,0.000284,2]
[345393454,1734229844147,-356.64663658,0.00028493,7]
[345393455,1734229844156,-1746.22489853,0.000285,2]
[345393473,1734230415333,166.240818,0.00013973,2]
[345393507,1734231032182,-167.0,0.00027,2]
[345393508,1734231032193,-395.472,0.0002707,2]
[345393509,1734231032203,-555.03949844,0.00027297,2]
[345393510,1734231032212,-281.71267806,0.00027383,2]
[345393545,1734231038158,-18.28732194,0.00027383,2]
[345393547,1734231038167,-40689.03078192,0.00027384,2]
[345393549,1734231038180,-30344.28823169,0.00027384,2]
[345393551,1734231038190,-500.0,0.00027397,7]
[345393553,1734231038199,-500.0,0.00027397,7]
[345393555,1734231038209,-500.0,0.00027397,7]
[345393557,1734231038219,-500.0,0.00027397,7]
[345393559,1734231038228,-500.0,0.00027397,7]
[345393561,1734231038238,-500.0,0.00027397,7]
[345393563,1734231038248,-500.0,0.00027397,7]
[345393565,1734231038258,-523.7133627,0.00027397,7]
[345393567,1734231038267,-500.0,0.00027397,7]
[345393570,1734231038277,-500.0,0.00027397,7]
[345393571,1734231038287,-500.0,0.00027397,7]
[345393573,1734231038296,-500.0,0.00027397,7]
[345393576,1734231038306,-500.0,0.00027397,7]
[345393578,1734231038316,-500.0,0.00027397,7]
[345393580,1734231038325,-500.0,0.00027397,7]
[345393582,1734231038335,-500.0,0.00027397,7]
[345393584,1734231038345,-497.8844455,0.00027397,7]
[345393586,1734231038354,-500.0,0.00027397,7]
[345393588,1734231038364,-500.0,0.00027397,7]
[345393590,1734231038374,-500.0,0.00027397,7]
[345393592,1734231038384,-633.9825896,0.00027397,7]
[345393595,1734231038394,-500.0,0.00027397,7]
[345393599,1734231038403,-502.29482985,0.00027397,7]
[345393602,1734231038413,-501.2646946,0.00027397,7]
[345393605,1734231038423,-500.0,0.00027397,7]
[345393608,1734231038433,-500.0,0.00027397,7]
[345393611,1734231038443,-502.32896262,0.00027397,7]
[345393614,1734231038453,-500.0,0.00027397,7]
[345393617,1734231038463,-500.0,0.00027397,7]
[345393619,1734231038472,-500.0,0.00027397,7]
[345393622,1734231038482,-500.0,0.00027397,7]
[345393624,1734231038491,-247.67821161,0.00027397,7]
[345393626,1734231038501,-500.0,0.00027397,7]
[345393628,1734231038512,-502.53397207,0.00027397,7]
[345393630,1734231038521,-479.0,0.00027397,7]
[345393632,1734231038531,-500.0,0.00027397,7]
[345393634,1734231038540,-156.61311114,0.00027397,7]
[345393636,1734231038549,-500.0,0.00027397,7]
[345393638,1734231038559,-500.0,0.00027397,7]
[345393640,1734231038569,-500.0,0.00027397,7]
[345393642,1734231038578,-500.0,0.00027397,7]
[345393643,1734231038587,-500.0,0.00027397,7]
[345393645,1734231038596,-500.0,0.00027397,7]
[345393647,1734231038606,-500.0,0.00027397,7]
[345393650,1734231038617,-500.0,0.00027397,7]
[345393652,1734231038627,-500.0,0.00027397,7]
[345393653,1734231038638,-500.0,0.00027397,7]
[345393655,1734231038653,-500.0,0.00027397,7]
[345393657,1734231038662,-500.0,0.00027397,7]
[345393659,1734231038672,-508.09798387,0.00027397,7]
[345393662,1734231038682,-500.0,0.00027397,7]
[345393664,1734231038695,-500.0,0.00027397,7]
[345393666,1734231038705,-500.0,0.00027397,7]
[345393668,1734231038714,-502.33478179,0.00027397,7]
[345393670,1734231038724,-1045.76,0.00027397,7]
[345393672,1734231038733,-500.0,0.00027397,7]
[345393674,1734231038743,-501.71961503,0.00027397,7]
[345393676,1734231038753,-500.0,0.00027397,7]
[345393678,1734231038763,-1059.62,0.00027397,7]
[345393680,1734231038772,-500.0,0.00027397,7]
[345393682,1734231038782,-616.7,0.00027397,7]
[345393684,1734231038791,-500.0,0.00027397,7]
[345393686,1734231038801,-500.0,0.00027397,7]
[345393688,1734231038810,-500.0,0.00027397,7]
[345393690,1734231038820,-500.0,0.00027397,7]
[345393692,1734231038830,-719.58,0.00027397,7]
[345393694,1734231038839,-500.0,0.00027397,7]
[345393696,1734231038849,-500.0,0.00027397,7]
[345393698,1734231038859,-500.0,0.00027397,7]
[345393700,1734231038869,-723.94,0.00027397,7]
[345393702,1734231038879,-500.0,0.00027397,7]
[345393704,1734231038894,-500.0,0.00027397,7]
[345393706,1734231038904,-500.0,0.00027397,7]
[345393708,1734231038914,-500.0,0.00027397,7]
[345393711,1734231038923,-500.0,0.00027397,7]
[345393713,1734231038942,-500.0,0.00027397,7]
[345393716,1734231038955,-500.0,0.00027397,7]
[345393718,1734231038967,-500.0,0.00027397,7]
[345393720,1734231038980,-500.0,0.00027397,7]
[345393723,1734231038992,-500.0,0.00027397,7]
[345393725,1734231039004,-500.0,0.00027397,7]
[345393727,1734231039019,-500.0,0.00027397,7]
[345393730,1734231039030,-1298.08,0.00027397,7]
[345393732,1734231039043,-500.0,0.0002767,7]
[345393734,1734231039054,-500.0,0.0002767,7]
[345393736,1734231039064,-500.0,0.0002767,7]
[345393738,1734231039076,-500.0,0.0002767,7]
[345393741,1734231039088,-502.96868627,0.0002767,7]
[345393743,1734231039100,-500.0,0.0002767,7]
[345393745,1734231039113,-500.0,0.0002767,7]
[345393747,1734231039124,-500.0,0.0002767,7]
[345393750,1734231039137,-517.5761631,0.0002767,7]
[345393752,1734231039149,-331.12350529,0.0002767,7]
[345393754,1734231039160,-500.0,0.00027671,7]
[345393756,1734231039171,-500.0,0.00027671,7]
[345393758,1734231039182,-500.0,0.00027671,7]
[345393761,1734231039198,-552.23112674,0.00027671,7]
[345393763,1734231039211,-500.0,0.00027671,7]
[345393765,1734231039222,-500.0,0.00027671,7]
[345393767,1734231039235,-500.0,0.00027671,7]
[345393769,1734231039247,-500.0,0.00027671,7]
[345393771,1734231039260,-500.0,0.00027671,7]
[345393773,1734231039273,-500.0,0.00027671,7]
[345393776,1734231039285,-500.0,0.00027671,7]
[345393778,1734231039298,-500.0,0.00027671,7]
[345393780,1734231039309,-622.77401573,0.00027671,7]
[345393782,1734231039320,-500.0,0.00027671,7]
[345393785,1734231039332,-500.0,0.00027671,7]
[345393787,1734231039343,-581.63,0.00027671,7]
[345393789,1734231039354,-1045.76,0.00027671,7]
[345393791,1734231039366,-500.0,0.00027671,7]
[345393793,1734231039377,-1059.62,0.00027671,7]
[345393796,1734231039392,-500.0,0.00027671,7]
[345393798,1734231039404,-616.7,0.00027671,7]
[345393800,1734231039416,-719.58,0.00027671,7]
[345393802,1734231039427,-500.0,0.00027671,7]
[345393805,1734231039440,-723.94,0.00027671,7]
[345393808,1734231039451,-500.0,0.00027671,7]
[345393810,1734231039463,-500.0,0.00027671,7]
[345393812,1734231039475,-500.0,0.00027671,7]
[345393814,1734231039486,-1298.08,0.00027671,7]
[345393817,1734231039498,-555.0394984,0.00027679,2]
[345393819,1734231039511,-150.742,0.00027762,2]
[345393821,1734231039521,-500.0,0.00027944,7]
[345393823,1734231039531,-500.0,0.00027944,7]
[345393825,1734231039542,-500.0,0.00027944,7]
[345393827,1734231039552,-500.0,0.00027944,7]
[345393829,1734231039561,-500.0,0.00027945,7]
[345393831,1734231039572,-413.16377745,0.00027945,7]
[345393834,1734231039584,-500.0,0.00027945,7]
[345393836,1734231039595,-500.0,0.00027945,7]
[345393838,1734231039606,-500.0,0.00027945,7]
[345393840,1734231039616,-500.0,0.00027945,7]
[345393842,1734231039627,-500.0,0.00027945,7]
[345393844,1734231039641,-500.0,0.00027945,7]
[345393846,1734231039652,-500.0,0.00027945,7]
[345393848,1734231039664,-500.0,0.00027945,7]
[345393851,1734231039675,-218.69081883,0.00027945,7]
[345393853,1734231039687,-500.0,0.00027945,7]
[345393855,1734231039698,-500.0,0.00027945,7]
[345393857,1734231039709,-1045.76,0.00027945,7]
[345393859,1734231039720,-1059.62,0.00027945,7]
[345393861,1734231039731,-616.7,0.00027945,7]
[345393864,1734231039743,-719.58,0.00027945,7]
[345393866,1734231039754,-500.0,0.00027945,7]
[345393868,1734231039766,-723.94,0.00027945,7]
[345393870,1734231039778,-500.0,0.00027945,7]
[345393872,1734231039789,-500.0,0.00027945,7]
[345393875,1734231039801,-1298.08,0.00027945,7]
[345393877,1734231039814,-248.0,0.00028,2]
[345393879,1734231039826,-244.77,0.00028,2]
[345393881,1734231039837,-10000.0,0.00028,7]
[345393883,1734231039847,-555.0394984,0.0002806,2]
[345393885,1734231039857,-500.0,0.00028218,7]
[345393888,1734231039868,-500.0,0.00028218,7]
[345393890,1734231039879,-202.56929211,0.00028218,7]
[345393892,1734231039891,-569.96360015,0.00028218,7]
[345393894,1734231039902,-163.48481814,0.00028218,2]
[345393896,1734231039911,-500.0,0.00028218,2]
[345393898,1734231039922,-233.07966858,0.00028218,2]
[345393900,1734231039934,-455.71365522,0.00028218,2]
[345393902,1734231039946,-500.0,0.00028218,2]
[345393904,1734231039958,-500.0,0.00028218,2]
[345393906,1734231039970,-498.21872208,0.00028218,2]
[345393909,1734231039983,-500.0,0.00028219,7]
[345393911,1734231039994,-500.0,0.00028219,7]
[345393915,1734231040019,-500.0,0.00028219,7]
[345393917,1734231040034,-500.0,0.00028219,7]
[345393919,1734231040046,-500.0,0.00028219,7]
[345393922,1734231040056,-500.0,0.00028219,7]
[345393924,1734231040067,-500.0,0.00028219,7]
[345393926,1734231040078,-500.0,0.00028219,7]
[345393928,1734231040091,-500.0,0.00028219,7]
[345393930,1734231040103,-406.25377483,0.00028219,7]
[345393933,1734231040115,-500.0,0.00028219,7]
[345393935,1734231040126,-1045.76,0.00028219,7]
[345393937,1734231040137,-1059.62,0.00028219,7]
[345393939,1734231040152,-616.7,0.00028219,7]
[345393942,1734231040167,-719.58,0.00028219,7]
[345393944,1734231040178,-500.0,0.00028219,7]
[345393946,1734231040189,-723.94,0.00028219,7]
[345393948,1734231040199,-500.0,0.00028219,7]
[345393950,1734231040209,-500.0,0.00028219,7]
[345393952,1734231040220,-1298.08,0.00028219,7]
[345393954,1734231040230,-4377.76058461,0.00028277,2]
[345393956,1734231040240,-270.79876432,0.00028373,5]
[345393958,1734231040251,-156.55,0.000284,31]
[345393961,1734231040263,-156.55,0.000284,31]
[345393963,1734231040274,-156.55,0.000284,31]
[345393965,1734231040286,-32297.30145477,0.000284,3]
[345393967,1734231040297,-799.92161352,0.000284,2]
[345393969,1734231040309,-500.0,0.00028432,7]
[345393971,1734231040321,-555.0394984,0.00028442,2]
[345393974,1734231040332,-500.0,0.00028473,5]
[345393976,1734231040343,-500.0,0.00028473,5]
[345393978,1734231040355,-338.73423816,0.00028492,7]
[345393980,1734231040366,-500.0,0.00028492,7]
[345393982,1734231040377,-500.0,0.00028493,7]
[345393984,1734231040391,-500.0,0.00028493,7]
[345393986,1734231040402,-500.0,0.00028493,7]
[345393989,1734231040414,-500.0,0.00028493,7]
[345393991,1734231040425,-500.0,0.00028493,7]
[345393993,1734231040438,-310.54612719,0.00028493,7]
[345393995,1734231040449,-411.63808325,0.00028493,7]
[345393998,1734231040461,-169.23389547,0.00028493,7]
[345394000,1734231040475,-500.0,0.00028493,7]
[345394002,1734231040487,-500.0,0.00028493,7]
[345394004,1734231040499,-23616.97600436,0.00028493,7]
[345394007,1734231040511,-1045.76,0.00028493,7]
[345394009,1734231040524,-1059.62,0.00028493,7]
[345394011,1734231040535,-616.7,0.00028493,7]
[345394013,1734231040546,-719.58,0.00028493,7]
[345394015,1734231040557,-500.0,0.00028493,7]
[345394017,1734231040568,-723.94,0.00028493,7]
[345394019,1734231040580,-500.0,0.00028493,7]
[345394021,1734231040592,-500.0,0.00028493,7]
[345394043,1734231040604,-1298.08,0.00028493,7]
[345394045,1734231040817,-2014.74712422,0.000285,2]
[345394047,1734231040828,-112809.28725431,0.000285,2]
[345394048,1734231040838,-46245.14140752,0.000285,2]
[345394050,1734231040847,-753592.37685827,0.000285,2]
[345394106,1734231043085,-500.0,0.00027397,7]
[345394107,1734231043095,-18572.43009423,0.000285,2]
[345394124,1734231501935,169.649553,0.00013973,2]
[345394186,1734232232272,-176.429375,0.00027,2]
[345394188,1734232232282,-378.75,0.0002707,2]
[345394190,1734232232292,-167.419995,0.00027396,2]
[345394193,1734232232304,-132.580005,0.00027396,2]
[345394194,1734232232314,-500.0,0.00027397,7]
[345394197,1734232232324,-500.0,0.00027397,7]
[345394198,1734232232334,-500.0,0.00027397,7]
[345394200,1734232232343,-500.0,0.00027397,7]
[345394202,1734232232353,-500.0,0.00027397,7]
[345394204,1734232232362,-500.0,0.00027397,7]
[345394206,1734232232372,-500.0,0.00027397,7]
[345394208,1734232232382,-506.37081458,0.00027397,7]
[345394210,1734232232391,-311.9836919,0.00027397,7]
[345394212,1734232232401,-500.0,0.00027397,7]
[345394214,1734232232410,-500.0,0.00027397,7]